Workbook

Sheet Plan1
A1: MEMÓRIA DE CÁLCULO
A3: NOVA SEDE DO IOPES - VILA VELHA
A5: Vitória, 19 de fevereiro de 2020.
A6: Cliente | B6: Valor atual | C6: Base | D6: Municipio | E6: Tipo de Obra | F6: Mês | G6: Med | H6: Contratada | J6: Contrato | K6: O/S | L6: Data Início | M6: Término | N6: Prazo
A7: SESP | B7: 1,000,000.00 | C7: 2012-11-01 | D7: Vila Velha | E7: Construção | F7: 2014-01-01 | G7: 06ª | H7: FAISCA | J7: 14/2020 | K7: 30/2020 | L7: 2020-09-16 | M7: 2020-05-14 | N7: 240
A8: ITEM | B8: DESCRIÇÃO | K8: UND | L8: Quant. Contratada | N8: Saldo atual
A10: PLANILHA 1 - IMPLANTAÇÃO
A12: 010201 | B12: Posto de vigilância para segurança da obra e patrimônio existente, exceto horário comercial, inclusive finais de semana e feriados. | K12: mês | L12: 8.00 | N12: =L12-H21 -> 2.50
D13: x | E13: y | F13: z | G13: w | H13: TOTAL | I13: INFORMAÇÕES COMPLEMENTARES
D14: UNID. (m) | G14: PROP. (%)
A15: 1ª med | B15: Período de 16/09 a 30/09 | D15: 1.00 | G15: 50% | H15: =ROUND(D15*(G15),2) -> 0.50
A16: 2ª med | B16: Período de 01/10 a 31/10 | D16: 1.00 | G16: 100% | H16: =ROUND(D16*(G16),2) -> 1.00
A17: 3ª med | B17: Período de 01/11 a 30/11 | D17: 1.00 | G17: 100% | H17: 1.00
A18: 4ª med | B18: Período de 01/12 a 15/12 | D18: 1.00 | G18: 100% | H18: 1.00
A19: 5ª med | B19: Período de 16/12 a 31/12 | D19: 1.00 | G19: 100% | H19: 1.00
A20: 6ª med | B20: Período de 01/01 a 31/14 | D20: 1.00 | G20: 100% | H20: 1.00
A21: Total Executado= | H21: =SUM(H15:H20) -> 5.50
A22: Medido até a última medição = | H22: 4.50
A23: Total Medido Nesta Medição= | H23: =H21-H22 -> 1.00
A25: 020102 | B25: Tapume de chapa de aço galvanizado Nr 26 USG, pintada, com 2,0 m de altura, considerando utilização de 2 vezes (com requadro de madeira 2,5 x 5,0cm e pontalete 8x8cm a cada 1,0m) (com utilização 2 vezes da madeira) | K25: m | L25: 159.00 | N25: =L25-H33 -> (41.00)
D26: x | E26: y | F26: z | G26: w | H26: TOTAL | I26: DESCONTO DE 24% POIS O TAPUME AINDA NÃO FOI PINTADO.
D27: COMP. (m) | G27: DESC. (%)
A28: 6ª med | B28: Av. Líbano | D28: 56.00 | G28: 24% | H28: =ROUND(D28*(1-G28),2) -> 42.56
B29: Rua Açucena | D29: 54.00 | G29: 24% | H29: =ROUND(D29*(1-G29),2) -> 41.04
B30: Av. Equador | D30: 100.00 | G30: 24% | H30: 76.00
B31: Vizinho (CRAS) | D31: 70.00 | G31: 24% | H31: 53.20
A32: Total Executado= | H32: =SUM(H28:H31) -> 212.80
A33: Medido até a última medição = | H33: 200.00
A34: Total Medido Nesta Medição= | H34: =H32-H33 -> 12.80
A36: 010210 | B36: Transporte de Solo | K36: m³ | L36: 1,000.00 | N36: =L36-H42 -> (6,802.54)
D37: x | E37: y | F37: z | G37: w | H37: TOTAL | I37: 6ª med - Os valores de volume escavado estão detalhados nas seções transversão e no cálculo dos volumes constantes no levantamento topografico constantes no ANEXO I.
D38: COMP. (m) | E38: LARG. (m) | F38: PROF. (m) | G38: EMP. (%)
A39: 4ª med | B39: Volume Escavado - Sapata 01 | D39: 1.00 | E39: 1.30 | F39: 1.50 | G39: 30% | H39: =ROUND(D39*E39*F39*(1+G39),2) -> 2.54
A40: 5ª med | B40: Volume Escavado | D40: 3,000.00 | E40: 1.00 | F40: 1.00 | G40: 30% | H40: =ROUND(D40*E40*F40*(1+G40),2) -> 3,900.00
A41: 6ª med | B41: Volume Escavado | D41: 3,000.00 | E41: 1.00 | F41: 1.00 | G41: 30% | H41: 3,900.00
A42: Total Executado= | H42: =SUM(H39:H41) -> 7,802.54
A43: Medido até a última medição = | H43: 5,000.00
A44: Total Medido Nesta Medição= | H44: =H42-H43 -> 2,802.54
